[Event "Festival Groningen-A 2024"]
[Site "Groningen"]
[Date "2024.12.24"]
[Round "4.12"]
[White "Okuno, Rion"]
[Black "Manish Anto Cristiano F"]
[Result "0-1"]
[ECO "C41"]
[WhiteElo "2027"]
[BlackElo "2296"]
[Annotator "RC"]
[PlyCount "64"]
[EventDate "2024.12.21"]
[EventType "swiss"]
[EventCountry "NED"]
[SourceTitle "playchess.com"]
[Source "ChessBase"]
[SourceQuality "1"]
[TimeControl "40/5400+30:1800+30"]

1. e4 {[%emt 0:00:02]} d6 {[%emt 0:00:09]} 2. d4 {[%emt 0:00:17]} Nf6 {[%emt 0:00:09]} 3. Nc3 {[%emt 0:00:04]} e5 {[%emt 0:00:07]} 4. Nf3 {[%emt 0:00:44]} Nbd7 {[%emt 0:00:15]} 5. Bc4 {[%emt 0:01:29]} Be7 {[%emt 0:00:20]} 6. O-O {[%emt 0:01:35]} O-O {[%emt 0:00:08]} 7. a4 {[%emt 0:02:07]} h6 {[%emt 0:00:29]} 8. h3 {[%emt 0:02:08]} c6 {[%emt 0:00:13]} 9. Re1 {[%emt 0:02:30]} Re8 {[%emt 0:00:12]} 10. a5 {[%emt 0:05:15]} Qc7 {[%emt 0:01:40]} 11. Be3 {[%emt 0:16:25]} Bf8 {[%emt 0:03:50]} 12. d5 {[%emt 0:06:20]} cxd5 {[%emt 0:03:40]} 13. Bxd5 {[%emt 0:00:10]} Nc5 {[%emt 0:00:15]} 14. b4 {[%emt 0:14:03]} Na6 {[%emt 0:29:21]} 15. Nb5 {[%emt 0:01:33]} Qd7 {[%emt 0:01:19]} 16. c4 {[%emt 0:08:56]} Nxd5 {[%emt 0:03:12]} 17. exd5 {[%emt 0:03:55]} Nxb4 {[%emt 0:03:36]} 18. Bxa7 {[%emt 0:04:18]} Na6 {[%emt 0:05:00]} 19. Qb3 {[%emt 0:03:39]} Qf5 {[%emt 0:01:01]} 20. Bb6 {[%emt 0:02:31]} Bd7 {[%emt 0:01:07]} 21. Nd2 {[%emt 0:01:20]} Qg6 {[%emt 0:03:04]} 22. c5 {[%emt 0:04:35]} dxc5 {[%emt 0:01:53]} 23. Nc4 {[%emt 0:00:47]} Bxb5 {[%emt 0:06:48]} 24. Qxb5 {[%emt 0:00:05]} Nb4 {[%emt 0:00:11]} 25. Nxe5 {[%emt 0:05:14]} Qf5 {[%emt 0:01:24]} 26. Nd7 {[%emt 0:01:32]} Rxe1+ {[%emt 0:07:30]} 27. Rxe1 {[%emt 0:00:05]} Nd3 {[%emt 0:00:11]} 28. Rf1 {[%emt 0:00:48]} Nf4 {[%emt 0:03:27]} 29. Nxf8 {[%emt 0:02:37]} Qxd5 {[%emt 0:00:49]} 30. f3 {[%emt 0:00:15]} Qg5 {[%emt 0:00:25]} 31. Qb2 {[%emt 0:04:31]} Re8 {[%emt 0:05:55]} 32. Bc7 {[%emt 0:01:16]} Re2 {[%emt 0:00:19]} 0-1

[Event "Festival Groningen-A 2024"]
[Site "Groningen"]
[Date "2024.12.24"]
[Round "4.13"]
[White "De Boer, Eelke"]
[Black "Van Roon, Sjoerd"]
[Result "1/2-1/2"]
[ECO "B31"]
[WhiteElo "2426"]
[BlackElo "2285"]
[Annotator "TA"]
[PlyCount "88"]
[EventDate "2024.12.21"]
[EventType "swiss"]
[EventCountry "NED"]
[SourceTitle "playchess.com"]
[Source "ChessBase"]
[SourceQuality "1"]
[TimeControl "40/5400+30:1800+30"]

{[%evp 10,88,31,13,50,37,43,42,40,37,46,38,37,39,35,35,76,29,67,4,14,8,22,0,41,33,38,36,137,143,139,125,116,117,188,174,281,219,225,216,267,257,302,301,302,203,214,160,326,369,339,126,125,118,123,127,129,128,176,125,137,119,120,122,130,125,110,-56,0,0,0,0,0,0,0,0,0,0,0,0,0]} 1. e4 {[%emt 0:00:05]} c5 {[%emt 0:00:02]} 2. Nf3 {[%emt 0:00:09]} Nc6 {[%emt 0:00:03]} 3. Bb5 {[%emt 0:00:09]} g6 {[%emt 0:00:24]} 4. O-O {[%emt 0:00:19]} Bg7 {[%emt 0:00:07]} 5. Bxc6 {[%emt 0:00:08]} dxc6 {[%emt 0:00:17]} 6. d3 {[%emt 0:00:11]} Bg4 {[%emt 0:03:12]} 7. Nbd2 {[%emt 0:00:43]} Nf6 {[%emt 0:02:18][%cal Bg8f6,Bf6d7,Bd7f8,Bf8e6][%mdl 32]} 8. h3 {[%emt 0:00:09]} Bxf3 {[%emt 0:00:07]} 9. Nxf3 {[%emt 0:00:15]} Nd7 {[%emt 0:04:01]} 10. Be3 {[%emt 0:03:46]} b6 {[%emt 0:12:07]} 11. Qc1 {[%emt 0:03:15]} e5 {[%emt 0:08:04]} 12. a4 {[%emt 0:07:43]} h6 {[%emt 0:03:24]} 13. Nh2 {[%emt 0:08:22]} (13. a5 $16) 13... Nf8 {[%emt 0:01:27]} 14. f4 {[%emt 0:00:28]} (14. a5 $14) 14... exf4 $11 {[%emt 0:00:22]} 15. Rxf4 {[%emt 0:00:11]} Ne6 {[%emt 0:00:44]} 16. Rf2 {[%emt 0:00:45]} a5 {[%emt 0:05:37]} 17. Qd2 {[%emt 0:06:36]} Ra7 {[%emt 0:29:18]} 18. Raf1 {[%emt 0:00:19]} Rd7 {[%emt 0:01:04]} ({Black should play} 18... h5 $1 $14) 19. Ng4 $16 {[%emt 0:21:36]} h5 {[%emt 0:01:21]} 20. Nf6+ {[%emt 0:00:20]} Bxf6 {[%emt 0:00:03]} 21. Rxf6 {[%emt 0:00:09]} Qc7 {[%emt 0:04:57] [#]} (21... Re7 $16 22. Kh1 Qd7) 22. Qc3 $1 $36 {[%emt 0:02:34][%cal Of6e6][%mdl 2048] Threatening mate with Rxe6+!. White has strong initiative.} Rg8 {[%emt 0:06:14]} (22... Rh7 $142 23. Qc4 Re7) 23. Qc4 {[%emt 0:01:20]} Qe5 {[%emt 0:02:59]} 24. Qa6 {[%emt 0:03:41]} Qb8 {[%emt 0:01:46] Wards off Qa8} 25. c3 {[%emt 0:01:54]} g5 {[%emt 0:01:47]} 26. Qc4 {[%emt 0:12:58]} Qd6 {[%emt 0:01:48]} 27. d4 {[%emt 0:00:09]} cxd4 {[%emt 0:00:07]} 28. cxd4 {[%emt 0:00:07]} g4 $2 {[%emt 0:00:35]} (28... h4 $16) 29. h4 {[%emt 0:00:36]} g3 {[%emt 0:04:26]} 30. Rh6 $2 {[%emt 0:08:09]} (30. Qa6 $18) 30... Rg4 $16 {[%emt 0:00:40]} 31. Rh8+ {[%emt 0:09:35][%cal Bh6h8,Bh8h5,Bh5f5][%mdl 32]} Ke7 {[%emt 0:00:06]} 32. Rxh5 {[%emt 0:00:07] White is more active.} Rxe4 {[%emt 0:01:18]} 33. Qd3 {[%emt 0:00:44] The board is on fire.} Rxd4 {[%emt 0:01:53]} (33... Rxe3 $16 34. Qxe3 Qxd4 35. Qxd4 Rxd4) 34. Bxd4 {[%emt 0:00:37]} (34. Qf5 $18 Kd8 35. Qf6+ Re7 36. Rh8+ Kc7 37. Ra8 (37. Bxd4 Qxd4+ 38. Qxd4 Nxd4 $18)) 34... Qxd4+ {[%emt 0:00:05]} 35. Qxd4 {[%emt 0:00:13]} Rxd4 {[%emt 0:00:02][%mdl 4096] Endgame KRR-KRN} 36. Rhf5 {[%emt 0:08:16]} Rxh4 {[%emt 0:00:18]} 37. Rxf7+ {[%emt 0:00:03]} Kd6 {[%emt 0:00:05]} 38. b3 $2 {[%emt 0:00:50]} ({White should try} 38. Re1 $16 {Threatens to win with Rf6.} Nd4 (38... Rxa4 $2 {loses.} 39. Rf6 $18) 39. Rg7) 38... Re4 {[%emt 0:01:15]} (38... Nd4 $1 $15 39. R1f6+ Kc5) 39. Rd1+ {[%emt 0:01:42]} Nd4 {[%emt 0:01:47]} 40. Rf3 {[%emt 0:00:35]} Ke7 {[%emt 0:03:11]} 41. Rfd3 {[%emt 0:13:54]} (41. Rxg3 Ne2+ 42. Kh2 Nxg3 43. Kxg3 Re3+ 44. Kh4 Rxb3 45. Re1+ Kd7 $17) 41... c5 {[%emt 0:00:00]} 42. Kf1 {[%emt 0:00:08][%cal Od1e1]} ({But not} 42. Rxg3 Ne2+ 43. Kh2 Nxg3 44. Kxg3 Re3+ 45. Kf4 Rxb3 $17) 42... Rf4+ {[%emt 0:00:11]} 43. Ke1 {[%emt 0:00:11]} Re4+ {[%emt 0:00:56]} 44. Kf1 {[%emt 0:00:23][%cal Od1e1]} Rf4+ {[%emt 0:01:22]} 1/2-1/2

[Event "Festival Groningen-A 2024"]
[Site "Groningen"]
[Date "2024.12.24"]
[Round "4.14"]
[White "Mostertman, Milan"]
[Black "Stijve, Theo"]
[Result "1/2-1/2"]
[ECO "C03"]
[WhiteElo "2244"]
[BlackElo "2396"]
[Annotator "TA"]
[PlyCount "94"]
[EventDate "2024.12.21"]
[EventType "swiss"]
[EventCountry "NED"]
[SourceTitle "playchess.com"]
[Source "ChessBase"]
[SourceQuality "1"]
[TimeControl "40/5400+30:1800+30"]

{[%evp 9,94,36,37,30,40,38,38,34,29,33,22,34,43,46,34,19,19,20,25,22,45,29,49,35,33,27,35,29,34,27,26,26,25,15,28,11,20,10,11,0,37,0,-6,-6,0,0,0,-41,-37,-41,-42,-32,-15,-15,-14,-14,-14,-14,-14,-14,-14,-14,-14,-14,-14,-14,-3,-3,-3,-8,0,0,0,0,0,0,0,0,0,0,0,0,0,0,0,0,0]} 1. e4 {[%emt 0:00:03]} e6 {[%emt 0:00:06]} 2. d4 {[%emt 0:00:14]} d5 {[%emt 0:00:07]} 3. Nd2 {[%emt 0:00:47][%cal Bb1d2,Bd2b3,Bb3d4,Bd4b5][%mdl 32]} a5 {[%emt 0:00:07]} 4. Ngf3 {[%emt 0:03:09]} Nf6 {[%emt 0:00:36]} 5. Bd3 {[%emt 0:01:14]} c5 {[%emt 0:00:24]} 6. exd5 {[%emt 0:08:46]} exd5 {[%emt 0:00:40]} 7. dxc5 $1 {[%emt 0:02:32]} Bxc5 {[%emt 0:00:20]} 8. Nb3 {[%emt 0:02:19] White is slightly better.} Qe7+ {[%emt 0:01:58]} 9. Qe2 {[%emt 0:08:28]} Qxe2+ {[%emt 0:00:28]} 10. Kxe2 {[%emt 0:00:31]} Bd6 {[%emt 0:03:57]} 11. Nbd4 {[%emt 0:03:52]} Nc6 {[%emt 0:05:46]} 12. Nb5 {[%emt 0:04:56]} Bb8 {[%emt 0:00:30]} 13. c3 {[%emt 0:01:42] Repels Nb4} O-O {[%emt 0:00:48]} 14. Re1 {[%emt 0:05:01]} Bg4 {[%emt 0:05:12]} (14... Ng4 {simplifies} 15. h3 Nge5 16. Nxe5 Nxe5 17. Bc2 a4) 15. h3 {[%emt 0:03:12]} Re8+ {[%emt 0:02:48]} 16. Be3 {[%emt 0:08:50]} (16. Kf1 {simplifies} Bxf3 17. Rxe8+ Nxe8 18. gxf3 Nf6 19. Be3) 16... Bh5 {[%emt 0:00:55]} 17. g4 {[%emt 0:00:45]} (17. Kf1 {simplifies} Bxf3 18. gxf3 Ne5 19. Be2) 17... Nxg4 {[%emt 0:14:34]} 18. hxg4 {[%emt 0:00:49]} Bxg4 {[%emt 0:00:08]} 19. Rg1 {[%emt 0:12:45]} (19. Nbd4 {simplifies} Nxd4+ 20. cxd4 h5 21. Rg1) 19... h5 {[%emt 0:02:27] [#]} 20. Rxg4 $1 {[%emt 0:10:41]} hxg4 {[%emt 0:00:38]} 21. Nfd4 {[%emt 0:00:27]} Ne5 {[%emt 0:03:32]} 22. Rg1 {[%emt 0:01:03][%mdl 1024] White has compensation.} g6 {[%emt 0:01:44] Wards off Nf5} 23. Kd2 {[%emt 0:01:41]} f5 {[%emt 0:04:36]} 24. Kc2 $1 {[%emt 0:02:50]} Kg7 {[%emt 0:05:59]} 25. Nxf5+ {[%emt 0:10:15]} gxf5 {[%emt 0:00:46]} 26. Bxf5 {[%emt 0:00:02]} Ra6 {[%emt 0:13:13]} 27. Bd4 {[%emt 0:01:25] This pair of bishops is nice.} Kf7 {[%emt 0:03:57]} 28. Bxg4 {[%emt 0:01:53]} Nxg4 {[%emt 0:08:02]} 29. Rxg4 {[%emt 0:00:01]} Re2+ {[%emt 0:00:25]} 30. Kb3 {[%emt 0:00:01]} Rg6 {[%emt 0:04:17]} (30... Be5 $5 {[%cal Ra5a4]}) 31. Rh4 {[%emt 0:01:04] The position is equal.} Be5 {[%emt 0:02:49]} 32. Bxe5 {[%emt 0:01:22]} Rb6 {[%emt 0:03:51]} 33. Ka4 {[%emt 0:01:44]} Rxe5 {[%emt 0:01:09]} 34. Kxa5 $11 {[%emt 0:00:14][%mdl 4096] Endgame. KRR-KRN} Ra6+ {[%emt 0:02:42]} 35. Kb4 {[%emt 0:00:02]} Re4+ {[%emt 0:01:29]} 36. Rxe4 {[%emt 0:00:02]} dxe4 {[%emt 0:00:07] KR-KN} 37. Kc4 {[%emt 0:00:59]} Rxa2 {[%emt 0:01:22][%cal Of7e6] Threatening ...Ke6!} 38. Nd6+ {[%emt 0:00:46]} Ke6 {[%emt 0:00:53]} 39. Kb3 {[%emt 0:00:02]} Rxb2+ {[%emt 0:02:33]} 40. Kxb2 {[%emt 0:00:02]} Kxd6 {[%emt 0:00:06] KPP-KPP} 41. c4 {[%emt 0:06:36]} Kc5 {[%emt 0:11:36]} 42. Kc3 {[%emt 0:01:32]} b6 {[%emt 0:00:18]} 43. Kb3 {[%emt 0:00:04]} Kd4 {[%emt 0:00:39]} 44. Kb4 {[%emt 0:00:04]} Kd3 {[%emt 0:01:29]} 45. c5 {[%emt 0:03:01]} e3 {[%emt 0:01:33]} 46. fxe3 {[%emt 0:00:23]} bxc5+ {[%emt 0:00:05]} 47. Kxc5 {[%emt 0:00:03]} Kxe3 {[%emt 0:00:07] Weighted Error Value: White=0.06 (flawless) /Black=0.05 (flawless) .  Inaccurate:     	White=2     	Black=1      OK:         	White=15    	Black=19     Best:        	White=6     	Black=1      Strong:       	White=2     	---} 1/2-1/2

[Event "Festival Groningen-A 2024"]
[Site "Groningen"]
[Date "2024.12.24"]
[Round "4.15"]
[White "Wempe, Joost"]
[Black "Smeets, Kobe"]
[Result "0-1"]
[ECO "D11"]
[WhiteElo "2233"]
[BlackElo "2349"]
[Annotator "TA"]
[PlyCount "94"]
[EventDate "2024.12.21"]
[EventType "swiss"]
[EventCountry "NED"]
[SourceTitle "playchess.com"]
[Source "ChessBase"]
[SourceQuality "1"]
[TimeControl "40/5400+30:1800+30"]

{[%evp 11,94,0,0,0,0,0,0,0,0,0,0,-7,9,15,17,10,10,11,11,0,28,11,47,45,66,43,58,39,34,34,45,42,68,67,64,64,65,34,75,66,83,48,42,48,46,9,47,0,0,0,6,9,8,-126,-130,-153,-160,-159,-165,-237,-237,-320,-311,-395,-397,-404,-406,-410,-416,-441,-445,-420,-433,-598,-608,-606,-593,-539,-500,-485,-487,-610,-618,-697,-689]} 1. d4 {[%emt 0:00:03]} d5 {[%emt 0:00:10]} 2. Nf3 {[%emt 0:00:10]} Nf6 {[%emt 0:00:06]} 3. g3 {[%emt 0:00:06]} c6 {[%emt 0:00:06]} 4. Bg2 {[%emt 0:00:06]} h6 {[%emt 0:00:05]} 5. c4 {[%emt 0:00:37]} Bf5 {[%emt 0:00:06]} 6. Nc3 {[%emt 0:01:15]} e6 {[%emt 0:00:08]} 7. Qb3 {[%emt 0:00:06]} Qb6 {[%emt 0:00:07]} 8. c5 {[%emt 0:00:07]} Qxb3 {[%emt 0:00:05]} 9. axb3 {[%emt 0:00:06]} Be7 {[%emt 0:00:18]} 10. b4 {[%emt 0:00:33]} O-O {[%emt 0:00:28]} 11. h3 {[%emt 0:01:12]} a6 {[%emt 0:10:02]} 12. g4 {[%emt 0:00:28]} Bh7 {[%emt 0:00:23]} 13. Bf4 {[%emt 0:00:08]} Nbd7 {[%emt 0:00:33]} 14. Nd2 {[%emt 0:00:23][%cal Bf3d2,Bd2b3,Bb3c1][%mdl 32]} Rfe8 {[%emt 0:05:25]} 15. Nb3 {[%emt 0:01:34]} Bd8 {[%emt 0:05:56] [#]} 16. b5 $1 {[%emt 0:07:07]} cxb5 {[%emt 0:19:59]} (16... Bc2 17. bxc6) 17. Nxb5 {[%emt 0:00:57] Black must now prevent Nd6.} Bc2 {[%emt 0:01:46]} 18. Nc1 {[%emt 0:21:21]} Nb8 {[%emt 0:04:09]} 19. Kd2 {[%emt 0:08:46]} Be4 {[%emt 0:03:46]} 20. f3 {[%emt 0:02:43]} Bh7 {[%emt 0:00:10]} 21. Nb3 {[%emt 0:05:17]} Nc6 {[%emt 0:01:28]} 22. Nc7 {[%emt 0:05:10]} Bxc7 {[%emt 0:00:11]} 23. Bxc7 {[%emt 0:00:05]} Nd7 {[%emt 0:02:27]} 24. e4 {[%emt 0:07:37]} dxe4 {[%emt 0:15:08]} 25. fxe4 {[%emt 0:00:08]} Rac8 {[%emt 0:00:15]} 26. Bd6 {[%emt 0:01:07]} e5 $1 {[%emt 0:05:52]} 27. d5 {[%emt 0:11:15]} Nd4 {[%emt 0:02:51]} 28. Ra3 {[%emt 0:15:00]} Nb5 {[%emt 0:03:01][%cal Ob5d6]} (28... Nf6 $5 29. Re1 (29. Nxd4 exd4 30. e5 Ne4+ 31. Bxe4 Bxe4 $11) 29... Nb5 $16) 29. Ra4 {[%emt 0:01:14]} (29. Rc1 $1 $14) 29... Nxd6 {[%emt 0:02:44]} 30. cxd6 {[%emt 0:00:05]} Nb6 {[%emt 0:00:07][%cal Oe8d8]} 31. Rb4 {[%emt 0:01:21]} Nc4+ {[%emt 0:00:24]} 32. Ke2 {[%emt 0:07:43]} (32. Rxc4 $1 $11 {was the only way to keep the balance.} Rxc4 33. Kd3) 32... Nxd6 $17 {[%emt 0:00:20][%cal Oa6a5]} 33. Kd3 {[%emt 0:02:12]} b5 {[%emt 0:02:19]} 34. Na5 {[%emt 0:00:12] [#] Against Rc4} Rc5 $1 $36 {[%emt 0:00:09][%mdl 2048] Black is really pushing. Black is more active.} 35. Kd2 {[%emt 0:00:32]} (35. Ke3 {was necessary.}) 35... Rec8 $19 {[%emt 0:01:25] Threatens to win with ...Rc2+.} 36. Nc6 {[%emt 0:00:40] [#]} Bxe4 $1 {[%emt 0:06:45]} 37. Bxe4 {[%emt 0:00:56]} (37. Ne7+ Kf8) 37... Nxe4+ {[%emt 0:00:08]} 38. Ke3 {[%emt 0:00:04]} Nf6 {[%emt 0:00:23]} (38... Rxd5 $2 {loses.} 39. Ne7+ (39. Kxe4 Rd7 $14) 39... Kf8 40. Kxe4 (40. Nxc8 Nc5 $18) (40. Nxd5 Nd6 $18) 40... Kxe7 41. Kxd5 $18) 39. Ne7+ {[%emt 0:00:12]} Kf8 {[%emt 0:00:07]} 40. Nxc8 {[%emt 0:00:03]} Nxd5+ {[%emt 0:00:13]} ({Less strong is} 40... Rxc8 41. Rb3 $15 (41. Rd1 Rc5 $17)) 41. Ke4 {[%emt 0:31:00]} Nxb4 {[%emt 0:30:07][%mdl 4096] Endgame KRN-KRN. Black is 3 pawns up.} 42. Nb6 {[%emt 0:00:15]} Ke7 {[%emt 0:01:22] Dodges Nd7} 43. Rd1 {[%emt 0:00:20]} Ke6 {[%emt 0:01:36]} 44. Rd8 {[%emt 0:01:29]} Nc6 {[%emt 0:03:18]} 45. Re8+ {[%emt 0:00:00]} Ne7 {[%emt 0:00:00]} 46. Ra8 {[%emt 0:00:00]} Rc6 {[%emt 0:00:00]} 47. Rxa6 {[%emt 0:00:00]} g6 {[%emt 0:00:00]} 0-1

[Event "Festival Groningen-A 2024"]
[Site "Groningen"]
[Date "2024.12.24"]
[Round "4.16"]
[White "Vijayakumar, Rishi"]
[Black "Kollen, Zyon"]
[Result "1/2-1/2"]
[ECO "D45"]
[WhiteElo "2204"]
[BlackElo "2344"]
[Annotator "TA"]
[PlyCount "43"]
[EventDate "2024.12.21"]
[EventType "swiss"]
[EventCountry "NED"]
[SourceTitle "playchess.com"]
[Source "ChessBase"]
[SourceQuality "1"]
[TimeControl "40/5400+30:1800+30"]

{[%evp 19,43,0,0,0,0,-9,28,37,59,64,62,58,80,63,48,71,73,68,99,0,0,0,101,0,0,0]} 1. d4 {[%emt 0:00:54]} e6 {[%emt 0:00:13]} 2. Nf3 {[%emt 0:00:13]} d5 {[%emt 0:00:12]} 3. c4 {[%emt 0:00:13]} c6 {[%emt 0:00:06]} 4. e3 {[%emt 0:00:27]} Nf6 {[%emt 0:00:09]} 5. Nc3 {[%emt 0:00:23]} Nbd7 {[%emt 0:00:08]} 6. Qc2 {[%emt 0:00:44]} Bd6 {[%emt 0:00:15]} 7. g4 {[%emt 0:00:45]} Nxg4 {[%emt 0:00:55]} 8. Rg1 {[%emt 0:00:17]} Nxh2 {[%emt 0:00:57]} 9. Nxh2 {[%emt 0:00:21]} Bxh2 {[%emt 0:00:06]} 10. Rxg7 {[%emt 0:00:09]} Nf8 {[%emt 0:00:10][%cal Bd7f8,Bf8g6,Bg6h4,Bh4f5][%mdl 32]} 11. Rg2 {[%emt 0:03:49]} Bd6 $1 {[%emt 0:00:16]} 12. e4 {[%emt 0:01:28]} dxe4 {[%emt 0:03:55]} 13. Nxe4 {[%emt 0:01:10]} Ng6 {[%emt 0:02:20] ...Nh4 is the strong threat.} 14. Bd2 {[%emt 0:13:20]} Nh4 {[%emt 0:17:13]} 15. Nxd6+ {[%emt 0:00:44]} Qxd6 {[%emt 0:00:06]} 16. Rg3 {[%emt 0:00:16] Dodges Nf3+} Nf5 {[%emt 0:01:05]} 17. Rg4 $1 {[%emt 0:07:26][%mdl 1024] White has compensation.} h5 {[%emt 0:08:41] [#]} (17... Nxd4 18. Rxd4 Qxd4 19. Bc3 $18) 18. Re4 $1 {[%emt 0:00:32]} Rg8 {[%emt 0:06:34]} (18... Nxd4 $2 {is the wrong capture.} 19. Rxd4 Qxd4 20. Bc3 $18) 19. Bf4 {[%emt 0:03:03]} Qb4+ $1 {[%emt 0:04:29]} (19... Nxd4 $2 20. Qc3 $18) 20. Bd2 {[%emt 0:00:11]} Qd6 {[%emt 0:01:55]} 21. Bf4 {[%emt 0:03:21]} (21. O-O-O $16) 21... Qb4+ $1 $11 {[%emt 0:04:59]} ({Wrong is} 21... Nxd4 $2 22. Qc3 $18) 22. Bd2 {[%emt 0:00:32]} 1/2-1/2

[Event "Festival Groningen-A 2024"]
[Site "Groningen"]
[Date "2024.12.24"]
[Round "4.17"]
[White "Koster, Ramon"]
[Black "Grooten, Herman"]
[Result "1-0"]
[ECO "E42"]
[WhiteElo "2330"]
[BlackElo "2183"]
[Annotator "RC"]
[PlyCount "77"]
[EventDate "2024.12.21"]
[EventType "swiss"]
[EventCountry "NED"]
[SourceTitle "playchess.com"]
[Source "ChessBase"]
[SourceQuality "1"]
[TimeControl "40/5400+30:1800+30"]

1. d4 {[%emt 0:00:02]} Nf6 {[%emt 0:00:08]} 2. c4 {[%emt 0:00:02]} e6 {[%emt 0:00:04]} 3. Nc3 {[%emt 0:00:02]} Bb4 {[%emt 0:00:06]} 4. e3 {[%emt 0:00:02]} c5 {[%emt 0:00:13]} 5. Nge2 {[%emt 0:00:13]} b6 {[%emt 0:00:50]} 6. a3 {[%emt 0:00:44]} Ba5 {[%emt 0:00:32]} 7. Rb1 {[%emt 0:00:14]} Na6 {[%emt 0:00:25]} 8. g3 {[%emt 0:02:22]} Bb7 {[%emt 0:00:34]} 9. d5 {[%emt 0:00:26]} b5 {[%emt 0:15:36]} 10. b3 {[%emt 0:02:09]} Ne4 {[%emt 0:09:11]} 11. Bd2 {[%emt 0:02:23]} exd5 {[%emt 0:02:06]} 12. Bg2 {[%emt 0:01:25]} Bxc3 {[%emt 0:05:30]} 13. Nxc3 {[%emt 0:02:15]} Nc7 {[%emt 0:04:31]} 14. Nxe4 {[%emt 0:35:35]} dxe4 {[%emt 0:01:17]} 15. Ba5 {[%emt 0:00:29]} Qb8 {[%emt 0:03:17]} 16. b4 {[%emt 0:03:50]} Ne6 {[%emt 0:07:39]} 17. O-O {[%emt 0:16:44]} a6 {[%emt 0:03:22]} 18. bxc5 {[%emt 0:03:43]} Nxc5 {[%emt 0:04:08]} 19. cxb5 {[%emt 0:04:03]} Qe5 {[%emt 0:02:49]} 20. b6 {[%emt 0:08:48]} O-O {[%emt 0:05:09]} 21. Bb4 {[%emt 0:02:05]} d6 {[%emt 0:05:33]} 22. Qd4 {[%emt 0:03:03]} Qe7 {[%emt 0:05:58]} 23. Rfd1 {[%emt 0:02:18]} Rfd8 {[%emt 0:00:22]} 24. Bxc5 {[%emt 0:04:14]} dxc5 {[%emt 0:00:06]} 25. Qc4 {[%emt 0:00:14]} Qe5 {[%emt 0:08:40]} 26. a4 {[%emt 0:00:44]} a5 {[%emt 0:00:24]} 27. Qb5 {[%emt 0:01:37]} Rd6 {[%emt 0:03:10]} 28. Rxd6 {[%emt 0:01:38]} Qxd6 {[%emt 0:00:05]} 29. Rc1 {[%emt 0:01:31]} Rc8 {[%emt 0:05:06]} 30. Qxa5 {[%emt 0:00:46]} c4 {[%emt 0:00:11]} 31. Bf1 {[%emt 0:00:26]} Ra8 {[%emt 0:03:00]} 32. Qb5 {[%emt 0:00:40]} Ba6 {[%emt 0:01:52]} 33. Qb1 {[%emt 0:00:37]} Qc6 {[%emt 0:00:35]} 34. Qb4 {[%emt 0:00:32]} g6 {[%emt 0:00:49]} 35. Bxc4 {[%emt 0:00:37]} Kg7 {[%emt 0:00:58]} 36. Qb2+ {[%emt 0:00:01]} Qf6 {[%emt 0:00:41]} 37. Qxf6+ {[%emt 0:00:13]} Kxf6 {[%emt 0:00:04]} 38. Bxa6 {[%emt 0:00:14]} Rxa6 {[%emt 0:00:04]} 39. b7 {[%emt 0:01:17]} 1-0

[Event "Festival Groningen-A 2024"]
[Site "Groningen"]
[Date "2024.12.24"]
[Round "4.18"]
[White "Keuning, Selwin"]
[Black "Ratsma, Midas"]
[Result "1-0"]
[ECO "C54"]
[WhiteElo "2180"]
[BlackElo "2326"]
[Annotator "RC"]
[PlyCount "89"]
[EventDate "2024.12.21"]
[EventType "swiss"]
[EventCountry "NED"]
[SourceTitle "playchess.com"]
[Source "ChessBase"]
[SourceQuality "1"]
[TimeControl "40/5400+30:1800+30"]

1. e4 {[%emt 0:00:05]} e5 {[%emt 0:00:04]} 2. Nf3 {[%emt 0:00:06]} Nc6 {[%emt 0:00:05]} 3. Bc4 {[%emt 0:00:14]} Nf6 {[%emt 0:00:09]} 4. d3 {[%emt 0:00:09]} Bc5 {[%emt 0:00:06]} 5. c3 {[%emt 0:00:19]} O-O {[%emt 0:00:10]} 6. O-O {[%emt 0:00:08]} d5 {[%emt 0:00:12]} 7. exd5 {[%emt 0:00:16]} Nxd5 {[%emt 0:00:05]} 8. Re1 {[%emt 0:00:20]} Bg4 {[%emt 0:00:11]} 9. Nbd2 {[%emt 0:01:10]} Nb6 {[%emt 0:00:21]} 10. h3 {[%emt 0:00:23]} Bh5 {[%emt 0:02:34]} 11. b4 {[%emt 0:00:54]} Be7 {[%emt 0:06:27]} 12. Qe2 {[%emt 0:00:43]} a6 {[%emt 0:03:50]} 13. Bb3 {[%emt 0:02:56]} Kh8 {[%emt 0:05:29]} 14. Ne4 {[%emt 0:11:52]} f5 {[%emt 0:00:26]} 15. Ng3 {[%emt 0:00:22]} Bxf3 {[%emt 0:01:10]} 16. Qxf3 {[%emt 0:00:44]} Qd7 {[%emt 0:01:03]} 17. Bb2 {[%emt 0:05:21]} Rae8 {[%emt 0:06:02]} 18. Rad1 {[%emt 0:07:34]} Bd6 {[%emt 0:01:54]} 19. a3 {[%emt 0:06:45]} e4 {[%emt 0:04:31]} 20. dxe4 {[%emt 0:11:35]} Ne5 {[%emt 0:00:27]} 21. Qe2 {[%emt 0:13:29]} f4 {[%emt 0:00:45]} 22. Nf5 {[%emt 0:02:17]} f3 {[%emt 0:00:36]} 23. Qf1 {[%emt 0:04:31]} fxg2 {[%emt 0:08:55]} 24. Qxg2 {[%emt 0:01:05]} Nbc4 {[%emt 0:02:42]} 25. Bc1 {[%emt 0:05:19]} Re6 {[%emt 0:05:25]} 26. Re3 {[%emt 0:06:56]} b5 {[%emt 0:13:43]} 27. Rg3 {[%emt 0:04:53]} Rf7 {[%emt 0:11:33]} 28. h4 {[%emt 0:05:42]} Ref6 {[%emt 0:03:16]} 29. Bc2 {[%emt 0:04:09]} Ng6 {[%emt 0:08:00]} 30. Bg5 {[%emt 0:02:22]} Re6 {[%emt 0:00:21]} 31. h5 {[%emt 0:00:40]} Nf8 {[%emt 0:01:44]} 32. Bc1 {[%emt 0:01:13]} g6 {[%emt 0:06:13]} 33. hxg6 {[%emt 0:00:58]} hxg6 {[%emt 0:00:08]} 34. Nxd6 {[%emt 0:00:30]} Rxd6 {[%emt 0:00:57]} 35. Qh3+ {[%emt 0:00:34]} Qxh3 {[%emt 0:01:14]} 36. Rxh3+ {[%emt 0:00:00]} Kg8 {[%emt 0:02:37]} 37. Rxd6 {[%emt 0:00:20]} cxd6 {[%emt 0:00:04]} 38. Bb3 {[%emt 0:01:23]} Ne6 {[%emt 0:00:31]} 39. Rd3 {[%emt 0:00:55]} Nf4 {[%emt 0:00:24]} 40. Bxf4 {[%emt 0:00:38]} Rxf4 {[%emt 0:00:04]} 41. Bxc4+ {[%emt 0:30:36]} bxc4 {[%emt 0:30:06]} 42. Rxd6 {[%emt 0:00:00]} Rxe4 {[%emt 0:00:00]} 43. Kf1 {[%emt 0:00:00]} Rh4 {[%emt 0:00:00]} 44. Rxa6 {[%emt 0:00:00]} Kf7 {[%emt 0:00:00]} 45. Rc6 {[%emt 0:00:00]} 1-0